bitfinex-derivatives/quotes_ETHF0:USTF0_20251012
["timestamp","ask_amount","ask_price","bid_price","bid_amount"]
[1760278010996,44.44479553,3816.4,3816.3,0.47156]
[1760278011201,44.44479553,3816.4,3816.3,1.35806]
[1760278012603,44.44479553,3816.4,3816.3,0.47156]
[1760278013902,44.44479553,3816.4,3816.3,1.35806]
[1760278014296,40.8,3816.4,3816.3,1.35806]
[1760278014704,0.00285777,3816.5,3816.4,1.35805]
[1760278014903,0.8958,3817.2,3817.1,0.47146]
[1760278015305,3.84506673,3817.2,3817.1,0.47146]
[1760278015806,44.64506673,3817.2,3817.1,0.47146]
[1760278015998,44.64796996,3817.2,3817.1,1.35796]
[1760278017103,0.00290323,3817.2,3817.1,6.35796]
[1760278017404,3.2078,3817.8,3817.7,1.35789]
[1760278017704,44.0078,3817.8,3817.7,1.35789]
[1760278018004,1.2328,3819.0,3818.9,0.47124]
[1760278018400,4.03032152,3819.0,3818.9,0.47390546]
[1760278018899,44.83032152,3819.0,3818.9,0.47390546]
[1760278019902,44.49332152,3819.0,3818.9,1.36040546]
[1760278020104,43.59752152,3819.0,3818.9,1.36040546]
[1760278020302,44.49332152,3819.0,3818.9,1.36040546]
[1760278020499,53.22255276,3819.0,3818.9,0.00266546]
[1760278020706,48.22255276,3819.0,3818.9,0.00266546]
[1760278021111,47.88555276,3819.0,3818.9,0.00266546]
[1760278021406,40.80186547,3819.0,3818.9,0.88916546]
[1760278021610,3.2078,3820.1,3820.0,0.4711]
[1760278021802,3.8684,3820.1,3820.0,1.3576]
[1760278022008,5.75239558,3820.1,3820.0,1.3576]
[1760278022203,2.23944558,3820.1,3820.0,1.7187]
[1760278022400,0.8958,3820.9,3820.8,0.47101]
[1760278022595,41.69851431,3820.9,3820.8,0.47101]
[1760278022800,43.8327824,3820.9,3820.8,1.38591]
[1760278022998,43.8327824,3820.9,3820.8,4.59371]
[1760278023409,40.80271431,3820.9,3820.8,4.59371]
[1760278023807,0.8969,3821.9,3821.8,0.47088]
[1760278024306,44.66601712,3821.9,3821.8,0.47088]
[1760278024501,44.66601712,3821.9,3821.4,3.2078]
[1760278024502,43.76911712,3821.9,3821.4,3.2078]
[1760278024704,0.3417,3821.0,3820.0,3.2078]
[1760278025005,1.2386,3820.5,3820.4,0.47105]
[1760278025506,4.10399055,3820.5,3820.4,0.47105]
[1760278026613,0.8969,3820.4,3820.3,0.47106]
[1760278027009,3.85287919,3820.4,3820.3,0.47106]
[1760278027908,44.65287919,3820.4,3820.3,0.47106]
[1760278029007,0.8969,3820.3,3820.2,0.47108]
[1760278029208,43.75597919,3820.4,3820.3,0.9149]
[1760278029413,40.8,3820.4,3820.3,0.9149]
[1760278029713,0.8969,3820.3,3820.2,0.47108]
[1760278030110,3.66854939,3820.3,3820.2,0.47108]
[1760278031310,0.47113,3819.8,3819.1,3.2078]
[1760278031514,0.3417,3819.5,3819.1,3.67901]
[1760278031703,0.3417,3819.5,3819.1,3.2078]
[1760278032016,6.64967895,3819.4,3819.1,3.67901]
[1760278032308,0.8969,3819.3,3818.7,3.2078]
[1760278032507,6.64967895,3819.4,3818.7,3.2078]
[1760278032702,0.47123,3819.0,3818.7,3.2078]
[1760278032906,0.47123,3819.0,3818.5,0.00199856]
[1760278032907,0.8969,3818.9,3818.5,0.00199856]
[1760278033215,0.8969,3818.6,3818.5,0.00199856]
[1760278033419,41.6969,3818.6,3818.5,0.00199856]
[1760278033618,53.06579243,3818.6,3818.5,0.00199856]
[1760278033812,53.06579243,3818.6,3817.8,3.2078]
[1760278033813,0.3417,3818.0,3817.9,0.47136]
[1760278034115,3.85857714,3818.0,3817.9,0.47136]
[1760278034704,40.8,3818.6,3818.5,0.47129]
[1760278034908,41.6969,3818.6,3818.5,0.47390801]
[1760278035209,44.59372349,3818.6,3818.5,0.00261801]
[1760278035813,52.99019854,3818.6,3818.5,0.00261801]
[1760278036516,0.3417,3818.0,3817.4,3.2078]
[1760278036714,0.8969,3817.9,3817.8,0.47137]
[1760278036913,3.86809447,3817.9,3817.8,3.67917]
[1760278037412,44.66809447,3817.9,3817.8,3.68175208]
[1760278037816,44.66809447,3817.9,3817.8,0.00258208]
[1760278039409,43.77119447,3817.9,3817.8,0.00258208]
[1760278039713,0.8969,3818.7,3817.8,9.12528208]
[1760278040015,0.34415921,3819.0,3818.9,0.47124]
[1760278040212,41.14415921,3819.0,3818.9,0.47124]
[1760278040411,48.34533593,3819.0,3818.9,0.47124]
[1760278041516,44.59962934,3819.0,3818.9,0.47124]
[1760278041715,2.90027013,3819.0,3818.9,6.38614]
[1760278041916,1.2386,3820.0,3819.9,0.47112]
[1760278042317,4.04471801,3820.0,3819.9,0.47112]
[1760278042519,3.70301801,3820.0,3819.9,0.47112]
[1760278042707,44.5050407,3820.0,3819.9,0.47112]
[1760278044012,43.6081407,3820.0,3819.9,1.38602]
[1760278044218,42.9293207,3820.0,3819.9,1.38602]
[1760278044410,0.00202269,3820.0,3819.9,1.38602]
[1760278044613,0.00202269,3820.0,3819.8,0.47112]
[1760278044614,3.01629568,3820.0,3819.8,0.47112]
[1760278044816,3.01629568,3820.0,3819.9,0.9149]
[1760278045021,0.00202269,3820.0,3819.9,0.9149]
[1760278045522,44.71319568,3820.0,3819.8,0.47112]
[1760278046021,44.71319568,3820.0,3819.8,1.38602]
[1760278046917,0.8969,3819.9,3819.8,0.47112]
[1760278047322,3.73055391,3819.9,3819.8,0.47112]
[1760278047621,2.83365391,3819.9,3819.8,0.47112]
[1760278047819,2.83365391,3819.9,3819.8,1.38602]
[1760278048021,40.80202269,3820.0,3819.9,0.9149]
[1760278048422,0.47096,3821.3,3820.6,2.09248]
[1760278048423,3.2078,3821.3,3820.6,2.09248]
[1760278048618,1.51871,3822.5,3820.6,2.09248]
[1760278048619,3.2078,3821.8,3821.5,0.9149]
[1760278048827,3.2078,3821.8,3821.7,0.47089]
[1760278049117,3.02928748,3821.9,3821.8,0.9149]
[1760278049318,0.022,3822.8,3822.7,0.47077]
[1760278049524,2.96986156,3822.4,3822.3,0.47082]
[1760278049721,2.96986156,3822.7,3822.2,3.2078]
[1760278049911,2.49342278,3822.8,3821.8,0.00251364]
[1760278049912,40.8,3822.4,3821.8,0.00251364]
[1760278050419,6.35952852,3822.3,3821.8,0.91741364]
[1760278050919,6.83035852,3822.3,3821.9,0.47087]
[1760278051123,6.83035852,3822.3,3821.8,0.00251364]
[1760278051124,0.8969,3821.9,3821.8,0.00251364]
[1760278051419,4.34995644,3821.9,3821.8,0.00251364]
[1760278051724,47.96870681,3821.9,3821.8,0.00251364]
[1760278052027,52.07180681,3821.9,3820.7,3.2078]
[1760278052232,0.8969,3821.4,3821.3,0.47094]
[1760278052717,3.84554998,3821.4,3821.3,0.47094]
[1760278053023,44.64554998,3821.4,3821.3,0.473225]
[1760278053417,44.64554998,3821.4,3821.3,1.366525]
[1760278053418,43.74864998,3821.4,3821.3,1.366525]
[1760278053823,3.2078,3822.1,3822.0,0.47086]
[1760278054127,6.21755038,3822.1,3822.0,1.36416]
[1760278054422,3.00975038,3822.1,3822.0,1.36416]
[1760278054817,3.2078,3822.6,3822.4,0.47081]
[1760278055019,0.9226,3822.5,3822.4,0.47081]
[1760278055217,3.91708304,3822.5,3822.4,0.47081]
[1760278055413,2.99448304,3822.5,3822.4,1.36411]
[1760278055923,2.55744002,3823.0,3822.7,0.47077]
[1760278056322,3.85182904,3822.8,3822.7,0.47077]
[1760278056717,0.9226,3822.7,3822.4,0.4708]
[1760278056913,0.9226,3822.7,3822.1,3.2078]
[1760278057118,2.754774,3822.6,3822.5,1.36409]
[1760278057720,0.02496305,3822.8,3822.7,1.36407]
[1760278057922,0.02496305,3822.8,3822.7,6.36407]
[1760278058426,40.82496305,3822.8,3822.7,6.36407]
[1760278058930,3.05e-06,3822.8,3822.7,6.36407]
[1760278062532,3.05e-06,3822.8,3822.7,1.36407]
[1760278062824,2.84474854,3822.8,3822.7,1.36407]
[1760278063027,3.74624854,3822.8,3822.7,1.36127]
[1760278063226,2.84474854,3822.8,3822.7,1.36127]
[1760278067528,3.05e-06,3822.8,3822.7,0.47077]
[1760278068131,3.05e-06,3822.8,3822.7,5.47077]
[1760278068430,3.2078,3824.1,3824.0,0.47061]
[1760278068737,6.24148429,3824.1,3824.0,1.36111]
[1760278069235,47.04412663,3824.1,3824.0,1.364203]
[1760278069730,47.04412663,3824.1,3824.0,1.726603]
[1760278070437,43.83632663,3824.1,3824.0,1.726603]
[1760278071129,43.83632663,3824.1,3824.0,1.364203]
[1760278071537,49.73782663,3824.1,3824.0,0.003093]
[1760278071735,49.73782663,3824.1,3824.0,0.473703]
[1760278072839,50.20842663,3824.1,3824.0,0.003093]
[1760278073139,50.20842663,3824.1,3823.1,1.17681]
[1760278073140,0.9015,3823.6,3823.1,1.17681]
[1760278073435,3.2078,3823.6,3823.1,0.8905]
[1760278073735,2.95583254,3823.5,3823.4,0.47069]
[1760278073936,4.18223254,3823.5,3823.4,0.47069]
[1760278074130,0.47069,3823.4,3823.3,0.47069]
[1760278074335,0.47069,3823.4,3823.3,0.47402757]
[1760278074336,41.27069,3823.4,3823.3,0.47402757]
[1760278074540,49.05285759,3823.4,3823.3,0.47402757]
[1760278074739,49.95435759,3823.4,3823.3,0.47402757]
[1760278074929,49.95435759,3823.4,3823.3,0.00333757]
[1760278075234,49.95435759,3823.4,3823.3,0.47403757]
[1760278075739,49.95435759,3823.4,3823.3,0.00333757]
[1760278076042,49.95435759,3823.4,3822.4,1.17701]
[1760278076043,0.9015,3822.4,3821.8,3.2078]
[1760278076431,6.22068495,3822.3,3822.1,0.47084]
[1760278076632,2.80668131,3822.3,3822.2,4.0983]
[1760278076938,0.9015,3823.3,3822.7,0.8905]
[1760278077142,0.47071,3823.2,3823.0,0.47073]
[1760278077343,0.9015,3823.1,3823.0,0.47073]
[1760278077550,0.47076,3822.9,3822.8,0.47076]
[1760278077840,4.21343824,3822.9,3822.8,0.47076]
[1760278078045,44.54267824,3822.9,3822.8,0.47076]
[1760278078435,43.64117824,3822.9,3822.8,0.47076]
[1760278078742,43.64117824,3822.9,3822.8,1.36126]
[1760278079736,0.3417,3824.0,3822.8,1.36126]
[1760278079737,3.2078,3823.9,3823.8,0.47064]
[1760278080040,5.86019516,3823.9,3823.8,0.47064]
[1760278080235,46.66019516,3823.9,3823.8,0.47064]
[1760278080441,43.45239516,3823.9,3823.8,1.36114]
[1760278080841,43.45239516,3823.9,3823.6,0.47066]
[1760278081143,0.9015,3823.8,3823.3,3.2078]
[1760278081339,43.45239516,3823.9,3823.8,0.8905]
[1760278081536,40.8,3823.9,3823.8,0.8905]
[1760278081735,43.55120584,3823.9,3823.8,0.8905]
[1760278084147,43.55120584,3823.9,3823.8,1.36114]
[1760278085346,44.47620584,3823.9,3823.8,0.47064]
[1760278085747,43.55120584,3823.9,3823.8,1.32504]
[1760278090251,2.75120584,3823.9,3823.8,1.32504]
[1760278090453,3.2078,3825.3,3825.2,0.47046]
[1760278090658,3.2078,3825.3,3824.5,2.36497]
[1760278090659,0.925,3825.2,3824.5,2.36497]
[1760278090853,2.80860785,3824.7,3824.6,1.32494]
[1760278091049,40.8,3825.0,3824.9,0.4705]
[1760278091448,43.28249236,3825.0,3824.9,0.8570625]
[1760278091652,44.20749236,3825.0,3824.9,0.0026625]
[1760278091852,44.20749236,3825.0,3824.9,0.4731625]
[1760278092051,44.67798236,3825.0,3824.9,0.0026625]
[1760278092259,53.22544438,3825.0,3824.9,0.0026625]
[1760278092749,53.22544438,3825.0,3823.7,1.17662]
[1760278092750,0.4706,3824.2,3823.5,5.57306]
[1760278092951,0.925,3824.1,3824.0,0.47061]
[1760278093148,0.925,3824.1,3823.0,0.3624]
[1760278093149,0.925,3823.8,3823.1,5.92276036]
[1760278093452,0.925,3823.2,3822.7,3.2078]
[1760278093655,0.925,3823.0,3822.8,0.47076]
[1760278093854,0.925,3823.0,3822.8,1.32516]
[1760278094255,2.72705546,3822.9,3822.8,1.32516]
[1760278095059,40.8,3823.1,3823.0,1.32514]
[1760278095454,43.75899844,3823.1,3823.0,1.32514]
[1760278095656,44.68399844,3823.1,3823.0,0.47074]
[1760278095955,44.68399844,3823.1,3822.7,0.00339282]
[1760278095956,43.75899844,3823.1,3822.7,0.00339282]
[1760278096157,0.925,3822.9,3822.7,0.00339282]
[1760278096353,0.47074,3823.0,3822.7,0.47416282]
[1760278096556,3.76195325,3822.8,3822.7,0.00339282]
[1760278096751,7.75373627,3822.8,3821.8,5.06836036]
[1760278096956,7.75373627,3822.8,3821.3,5.53930036]
[1760278096957,1.39589,3821.8,3821.3,5.53930036]
[1760278097153,0.925,3821.0,3820.9,3.2078]
[1760278097553,2.86598056,3821.0,3820.9,3.2078]
[1760278097855,41.7271288,3821.0,3820.9,0.0026221]
[1760278098156,48.01179918,3821.0,3820.9,0.0026221]
[1760278098854,43.69315404,3821.0,3820.9,1.3280121]
[1760278099557,43.69315404,3821.0,3820.9,6.3280121]
[1760278099858,0.0021288,3821.0,3820.9,1.3280121]
[1760278100055,2.75684853,3821.0,3820.9,6.3280121]
[1760278100260,0.0021288,3821.0,3820.9,8.18857246]
[1760278100662,40.8021288,3821.0,3820.9,8.18857246]
[1760278101157,40.8021288,3821.0,3820.9,1.3280121]
[1760278101362,44.57353748,3821.0,3820.9,0.0026221]
[1760278101561,53.19723385,3821.0,3820.9,0.0026221]
[1760278101758,48.02643385,3821.0,3820.9,0.0026221]
[1760278101953,43.64853748,3821.0,3820.9,0.8570221]
[1760278102153,40.8021288,3821.0,3820.9,5.8570221]
[1760278102861,40.8021288,3821.0,3820.9,0.8570221]
[1760278103263,40.8021288,3821.0,3820.9,5.8570221]
[1760278103458,40.8021288,3821.0,3820.9,0.8570221]
[1760278104556,40.8021288,3821.0,3820.9,5.8570221]
[1760278104957,40.8021288,3821.0,3820.9,0.8570221]
[1760278107153,0.0021288,3821.0,3820.9,0.8570221]
[1760278108359,2.94849799,3821.0,3820.9,0.0026221]
[1760278108561,2.94849799,3821.0,3820.9,0.8570221]
[1760278108866,3.87349799,3821.0,3820.9,0.0026221]
[1760278109162,48.13979854,3821.0,3820.9,0.0026221]
[1760278110163,0.925,3820.9,3820.7,0.47101]
[1760278110353,0.925,3820.9,3820.8,0.471]
[1760278110761,3.88326942,3820.9,3820.8,0.471]
[1760278111263,3.88326942,3820.9,3820.8,0.47290679]
[1760278112155,3.88326942,3820.9,3820.8,0.00190679]
[1760278112362,3.88326942,3820.9,3820.8,0.47291679]
[1760278112758,9.35425942,3820.9,3820.8,0.00190679]
[1760278112966,12.77682414,3820.9,3820.8,0.00190679]
[1760278113463,12.77682414,3820.9,3820.8,0.47291679]
[1760278113464,3.88326942,3820.9,3820.8,0.47291679]
[1760278115962,3.88326942,3820.9,3820.8,0.00190679]
[1760278116168,0.47102,3820.7,3820.6,0.47103]
[1760278116467,11.28312184,3820.9,3820.8,0.47101]
[1760278116468,0.8415,3820.9,3820.8,0.47101]
[1760278116971,44.36690042,3820.9,3820.8,0.47101]
[1760278117170,44.36690042,3820.9,3820.8,0.47247795]
[1760278118766,2.72540042,3820.9,3820.8,1.38327795]
[1760278119769,0.0021288,3821.0,3820.9,1.38179]
[1760278120470,40.8021288,3821.0,3820.9,1.38179]
[1760278120861,0.8415,3820.9,3820.8,0.00146795]
[1760278121161,6.47413615,3820.9,3820.3,0.9108]
[1760278121366,6.47413615,3820.9,3820.8,0.47101]
[1760278121574,44.63545643,3820.9,3820.8,0.47101]
[1760278121874,43.79395643,3820.9,3820.8,1.38181]
[1760278122276,44.63545643,3820.9,3820.8,0.47101]
[1760278124273,43.79395643,3820.9,3820.8,1.35451]
[1760278124468,0.1518,3820.5,3820.4,1.86056036]
[1760278124675,0.1651,3819.5,3819.4,0.47117]
[1760278124872,1.0742,3819.5,3819.4,0.47117]
[1760278125066,44.84704454,3819.5,3819.2,2.33176036]
[1760278125266,0.9091,3819.4,3819.3,0.47118]
[1760278125468,43.93794454,3819.5,3819.0,1.86056036]
[1760278125671,3.88194454,3819.4,3819.1,0.47121]
[1760278125973,0.9091,3819.3,3819.2,0.4712]
[1760278126177,2.97284454,3819.4,3819.2,1.3547]
[1760278126376,41.7091,3819.5,3819.4,0.47118]
[1760278126573,40.8,3819.5,3819.4,1.35468]
[1760278126770,3.29018289,3819.4,3818.9,1.86056036]
[1760278127077,0.9091,3819.2,3819.0,0.47123]
[1760278127273,0.9091,3819.2,3819.1,0.4712]
[1760278127475,0.9091,3819.2,3818.8,3.2078]
[1760278127476,0.3107,3819.0,3818.8,0.00172898]
[1760278127673,0.9091,3818.9,3818.8,0.00172898]
[1760278127878,10.37732038,3818.9,3818.8,0.00172898]
[1760278128469,43.62721191,3818.9,3818.8,1.35647898]
[1760278134674,40.8,3818.9,3818.8,1.35647898]
[1760278134875,44.459849,3818.9,3818.8,0.47297898]
[1760278135376,43.550749,3818.9,3818.8,1.35647898]
[1760278135569,44.459849,3818.9,3818.8,0.47297898]
[1760278135876,44.931089,3818.9,3818.8,0.00172898]
[1760278136067,0.1518,3818.5,3818.4,0.4713]
[1760278136268,0.1518,3818.5,3818.3,3.2078]
[1760278136269,0.9091,3818.4,3818.3,3.2078]
[1760278136676,0.9091,3818.4,3818.3,3.67911]
[1760278136677,3.79110084,3818.4,3818.3,3.67911]
[1760278137672,44.59110084,3818.4,3818.3,3.67911]
[1760278138774,43.68200084,3818.4,3818.3,4.56261]
[1760278138966,44.59110084,3818.4,3818.3,4.56261]
[1760278139172,44.59110084,3818.4,3818.3,3.67911]
[1760278140279,44.59110084,3818.4,3818.3,0.47131]
[1760278140576,0.9091,3818.3,3817.8,3.2339931]
[1760278140774,0.91197662,3818.3,3817.8,0.0261931]
[1760278140979,0.91197662,3818.3,3818.2,0.47133]
[1760278141376,7.1037475,3818.3,3818.2,0.47133]
[1760278142883,3.7035231,3818.3,3818.2,0.47133]
[1760278143879,0.00287662,3818.3,3818.2,9.52223]
[1760278144778,0.8382,3819.2,3818.3,1.17829]
[1760278144975,0.8382,3819.2,3818.9,0.47123]
[1760278145177,0.8382,3818.9,3818.6,0.47127]
[1760278145474,6.30600234,3818.8,3818.7,0.47126]
[1760278145685,7.14420234,3818.8,3818.7,0.47126]
[1760278145981,47.94739507,3818.8,3818.7,0.47403423]
[1760278146183,43.69876891,3818.8,3818.7,1.31713423]
[1760278146385,43.69876891,3818.8,3818.7,4.52493423]
[1760278146584,43.69876891,3818.8,3818.7,9.52493423]
[1760278146585,40.80319273,3818.8,3818.7,9.52493423]
[1760278147186,0.8382,3819.8,3819.7,0.47114]
[1760278147484,0.1651,3821.5,3819.7,0.47114]
[1760278147485,3.2078,3821.1,3820.1,0.8431]
[1760278147680,3.2078,3821.1,3820.9,0.47099]
[1760278147878,3.2078,3821.1,3821.0,1.2022]
[1760278147879,6.10390595,3821.1,3821.0,1.2022]
[1760278148078,6.10390595,3821.1,3820.3,1.17768]
[1760278148079,3.46771366,3821.0,3820.0,1.2022]
[1760278148279,3.2078,3820.6,3819.6,0.47115]
[1760278148584,6.36381961,3820.5,3820.2,0.47108]
[1760278149077,6.36381961,3820.5,3820.3,0.47106]
[1760278149276,0.47107,3820.3,3820.0,0.4711]
[1760278149477,0.1109,3820.1,3819.8,0.47112]
[1760278149675,0.47112,3819.9,3819.5,0.47116]
[1760278149982,0.1109,3819.7,3819.6,0.47115]
[1760278150287,6.16188149,3820.1,3819.7,0.47114]
[1760278150579,40.9109,3819.8,3819.7,0.47114]
[1760278151088,43.79807106,3819.8,3819.7,0.47114]
[1760278151481,0.1109,3819.7,3819.4,3.2078]
[1760278151783,2.88463138,3819.6,3819.1,3.2078]
[1760278151987,0.1109,3819.5,3819.2,0.4712]
[1760278152181,0.1109,3819.5,3819.3,0.47119]
[1760278152379,3.4687669,3819.6,3819.4,0.47117]
[1760278152577,40.9109,3819.8,3819.5,0.47116]
[1760278152887,6.32876439,3819.5,3819.4,1.31428]
[1760278153084,6.32876439,3819.7,3819.6,0.47115]
[1760278153287,40.8,3819.8,3819.7,0.8431]
[1760278153486,2.8731995,3819.7,3819.5,3.5669]
[1760278153696,2.8731995,3819.7,3819.6,0.8431]
[1760278153984,40.8,3819.8,3819.7,1.31424]
[1760278154384,43.70953931,3819.8,3819.7,1.31424]
[1760278154692,40.8,3819.8,3819.7,3.17752573]
[1760278155182,40.8,3819.8,3819.7,1.31424]
[1760278156281,43.83805043,3819.8,3819.7,2.70594511]
[1760278156481,43.83805043,3819.8,3819.7,2.7057284]
[1760278157687,43.83805043,3819.8,3819.7,1.8626284]
[1760278157876,43.83805043,3819.8,3818.9,3.27361382]
[1760278157877,0.1109,3819.6,3819.2,1.8626284]
[1760278158082,47.18287604,3819.8,3818.9,5.60431975]
[1760278158083,47.18287604,3819.8,3819.7,0.8431]
[1760278158282,40.8,3819.8,3819.7,0.8431]
[1760278158484,43.77800493,3819.8,3819.7,0.8431]
[1760278159185,43.77800493,3819.8,3819.5,5.0704284]
[1760278159389,43.77800493,3819.8,3819.6,0.47115]
[1760278159390,0.1109,3819.7,3819.6,0.47115]
[1760278159690,0.1109,3819.7,3819.1,4.0509]
[1760278159691,0.1109,3819.6,3819.1,5.5416384]
[1760278159887,0.58205,3819.6,3819.2,0.4712]
[1760278160093,0.1109,3819.4,3819.0,0.47123]
[1760278160383,40.8,3819.3,3819.1,0.47121]
[1760278160690,0.1109,3819.2,3819.1,0.47121]
[1760278160988,2.91088152,3819.2,3819.1,0.47121]
[1760278161187,0.1109,3819.1,3818.8,1.8626284]
[1760278161388,0.58212,3819.1,3818.8,0.47125]
[1760278161589,3.00325527,3819.0,3818.9,0.47124]
[1760278162291,3.00325527,3819.0,3818.9,1.31434]
[1760278162586,3.2078,3820.1,3819.3,0.47119]
[1760278162787,3.2078,3820.1,3819.0,0.3591]
[1760278162788,41.27111,3820.0,3819.8,0.47113]
[1760278163092,6.55731926,3819.9,3819.8,0.47113]
[1760278163287,0.1109,3819.9,3819.8,0.47113]
[1760278163480,3.2078,3820.1,3819.2,4.0509]
[1760278163481,3.2078,3820.1,3820.0,1.3142]
[1760278163685,44.0078,3820.1,3820.0,1.6733]
[1760278163884,47.01795189,3820.1,3820.0,1.6733]
[1760278164386,43.81015189,3820.1,3820.0,4.8811]
[1760278164582,43.81015189,3820.1,3820.0,1.6733]
[1760278167092,0.1109,3820.0,3819.9,1.86388944]
[1760278167294,0.58204,3819.7,3819.6,1.86388944]
[1760278167499,0.1109,3819.5,3819.3,2.33507944]
[1760278167688,0.1109,3819.6,3819.2,1.86388944]
[1760278167888,0.1109,3819.3,3819.1,5.07168944]
[1760278168196,40.8,3819.4,3819.1,5.91478944]
[1760278168503,6.46741726,3819.2,3819.1,0.47121]
[1760278168688,0.1109,3819.2,3819.1,0.47121]
[1760278168890,40.8,3819.4,3819.3,0.47119]
[1760278169098,40.9109,3819.4,3819.3,0.47119]
[1760278169296,47.33432722,3819.4,3819.3,0.47119]
[1760278170393,47.33432722,3819.4,3819.1,1.86388944]
[1760278170394,0.1109,3819.3,3819.1,1.86388944]
[1760278170599,0.58213,3819.0,3818.7,5.07446367]
[1760278170804,0.1109,3819.1,3818.7,0.00277423]
[1760278171097,0.58215,3818.8,3818.7,0.00277423]
[1760278171598,0.5794,3818.4,3818.3,1.86388944]
[1760278171796,3.2078,3818.5,3818.0,1.86388944]
[1760278172098,0.1081,3818.1,3818.0,1.86388944]
[1760278172285,5.0,3818.1,3817.9,2.33524944]
[1760278172488,0.56896,3817.9,3817.8,0.0261931]
[1760278172691,41.37115518,3817.9,3817.8,0.02924144]
[1760278172889,47.7279099,3817.9,3817.8,0.02924144]
[1760278173302,47.7279099,3817.9,3816.9,1.1787]
[1760278173303,0.47142,3817.5,3817.2,1.86388944]
[1760278173504,0.4714,3817.7,3817.1,1.86388944]
[1760278173799,6.25607326,3817.6,3817.1,1.86388944]
[1760278173998,0.0683,3817.5,3817.4,0.47141]
[1760278174195,6.25607326,3817.6,3817.4,0.47141]
[1760278174196,6.25607326,3817.6,3817.5,1.1704]
[1760278174504,40.80219518,3817.9,3817.5,1.1704]
[1760278174505,40.80219518,3817.9,3817.8,0.47138]
[1760278174896,43.65235667,3817.9,3817.8,0.47138]
[1760278175304,47.12737361,3817.9,3817.8,0.47138]
[1760278175499,47.05907361,3817.9,3817.2,1.86388944]
[1760278175700,0.47139,3817.8,3817.5,0.47141]
[1760278175900,0.0683,3817.6,3817.3,0.47143]
[1760278176095,0.0683,3817.6,3817.4,0.47142]
[1760278176403,0.0683,3817.6,3817.5,0.47141]
[1760278176703,6.45636323,3817.6,3817.5,0.47141]
[1760278178201,6.38806323,3817.6,3817.5,0.47141]
[1760278178405,6.45636323,3817.6,3817.5,0.47141]
[1760278179607,2.99424231,3817.6,3817.5,1.64181]
[1760278179903,40.80219518,3817.9,3817.8,0.47138]
[1760278180103,40.80219518,3817.9,3817.8,1.31228]
[1760278180301,43.55941298,3817.9,3817.8,1.31228]
[1760278180796,43.55941298,3817.9,3817.8,4.52008]
[1760278183806,3.2078,3818.9,3818.8,0.47125]
[1760278184008,3.2078,3818.9,3818.8,1.27685]
[1760278184204,2.7618755,3818.9,3818.8,1.27685]
[1760278184509,3.2664,3819.3,3819.2,0.4712]
[1760278184711,44.06829426,3819.3,3819.2,0.47364196]
[1760278185012,50.39661919,3819.3,3819.2,0.47364196]
[1760278185213,50.33801919,3819.3,3818.3,3.84776944]
[1760278185416,0.0586,3819.2,3818.6,0.8056]
[1760278185619,0.0586,3819.2,3819.1,0.47121]
[1760278186106,6.29120399,3819.2,3819.1,0.47121]
[1760278186907,0.52984,3819.0,3818.9,0.47124]
[1760278187107,0.52984,3819.0,3818.4,1.17826]
[1760278187412,40.8,3818.5,3818.4,0.4713]
[1760278187812,43.77849786,3818.5,3818.4,0.4713]
[1760278189911,43.77849786,3818.5,3818.4,1.2769]
[1760278190119,43.77849786,3818.5,3818.4,4.4847]
[1760278190417,40.8,3818.5,3818.4,11.34858944]
[1760278190918,0.00189426,3819.3,3819.2,1.2768]
[1760278191113,0.00189426,3819.3,3819.2,6.3475054]
[1760278191315,0.00189426,3819.3,3819.2,11.3475054]
[1760278191518,0.00189426,3819.3,3819.2,9.4846]
[1760278191813,3.67881,3820.8,3819.9,1.98339]
[1760278192016,0.0586,3820.7,3819.9,5.19119]
[1760278192208,6.34128763,3820.3,3819.9,4.0134]
[1760278192516,6.34128763,3820.3,3819.4,1.17794]
[1760278192517,0.0586,3820.3,3819.8,0.47112]
[1760278192709,40.8586,3820.1,3819.9,0.47111]
[1760278192905,0.0586,3820.0,3819.9,0.47111]
[1760278193117,6.24382652,3820.0,3819.9,0.47111]
[1760278193312,0.0586,3819.9,3819.8,0.00189426]
[1760278193518,40.8586,3819.9,3819.8,0.00189426]
[1760278193719,47.11335983,3819.9,3819.8,0.00189426]
[1760278194618,47.05475983,3819.9,3819.8,0.00189426]
[1760278194817,47.11335983,3819.9,3819.8,0.00189426]
[1760278196822,47.58447983,3819.9,3819.8,0.47302426]
[1760278197011,0.0567,3819.3,3819.2,0.4712]
[1760278197416,2.91721104,3819.3,3819.2,0.4712]
[1760278198818,2.86051104,3819.3,3819.2,1.2768]
[1760278199217,40.8,3819.9,3819.8,1.27673]
[1760278199616,43.53622405,3819.9,3819.8,1.27673]
[1760278200421,43.59292405,3819.9,3819.8,0.47113]
[1760278200717,0.0567,3819.6,3819.5,0.47117]
[1760278200923,47.06905909,3819.9,3819.8,0.47113]
[1760278201116,44.27613504,3819.9,3819.8,0.47113]
[1760278201324,47.08377756,3819.9,3819.8,0.47113]
[1760278201618,47.55489756,3819.9,3819.8,0.47113]
[1760278201822,47.08377756,3819.9,3819.8,0.47113]
[1760278202216,47.02707756,3819.9,3819.8,1.27673]
[1760278202417,43.55094252,3819.9,3819.8,1.27673]
[1760278203628,40.8,3819.9,3819.8,6.27673]
[1760278203930,40.8,3819.9,3819.8,1.27673]
[1760278206731,43.77568404,3819.9,3819.8,1.27673]
[1760278206929,43.77568404,3819.9,3819.8,6.27673]
[1760278207134,40.8,3819.9,3819.8,8.13823578]
[1760278207328,40.8,3819.9,3819.8,6.27673]
[1760278207638,0.002195,3820.3,3820.2,1.35548]
[1760278207934,0.002195,3820.3,3820.2,4.56328]
[1760278208428,3.2078,3821.3,3821.2,0.47096]
[1760278208635,44.0078,3821.3,3821.2,1.35536]
[1760278209332,40.8,3821.3,3821.2,1.35536]
[1760278209634,0.00208399,3821.3,3821.2,9.565355]
[1760278209829,3.2078,3822.6,3822.5,0.4708]
[1760278210023,3.67859,3822.6,3822.0,3.2078]
[1760278210221,3.67859,3822.6,3821.6,1.85724763]
[1760278210222,6.1451348,3822.5,3822.2,0.47083]